[Event "*** SCC Grand Prix: Titled Tuesday Blitz"]
[Site "Chess.com"]
[Date "2020.09.08"]
[Round "10"]
[White "Anna_ChessMate"]
[Black "RestartingChess"]
[Result "1/2-1/2"]
[WhiteElo "2504"]
[BlackElo "2431"]
[TimeControl "180+1"]
[EndTime "11:55:07 PDT"]
[Termination "Game drawn by agreement"]

1. d4 {[%clk 0:03:00.9]} 1... Nf6 {[%clk 0:02:57.3]} 2. c4 {[%clk 0:03:01.4]}
2... g6 {[%clk 0:02:56.4]} 3. g3 {[%clk 0:03:00.7]} 3... Bg7 {[%clk 0:02:57.1]}
4. Bg2 {[%clk 0:03:01.6]} 4... d6 {[%clk 0:02:58]} 5. Nc3 {[%clk 0:03:01.2]}
5... O-O {[%clk 0:02:58.7]} 6. Nf3 {[%clk 0:03:01.7]} 6... e5 {[%clk 0:02:59.4]}
7. dxe5 {[%clk 0:03:01.4]} 7... dxe5 {[%clk 0:03:00]} 8. Qxd8 {[%clk 0:03:01.6]}
8... Rxd8 {[%clk 0:03:00.9]} 9. Nxe5 {[%clk 0:03:02]} 9... Re8 {[%clk
0:03:01.5]} 10. Nf3 {[%clk 0:02:55]} 10... c6 {[%clk 0:03:01.8]} 11. O-O {[%clk
0:02:55.3]} 11... Be6 {[%clk 0:03:02.1]} 12. Nd2 {[%clk 0:02:53.9]} 12... Nbd7
{[%clk 0:03:02]} 13. Re1 {[%clk 0:02:53]} 13... Nb6 {[%clk 0:03:02.4]} 14. b3
{[%clk 0:02:49.7]} 14... Nfd5 {[%clk 0:02:55.3]} 15. Nxd5 {[%clk 0:02:31.3]}
15... cxd5 {[%clk 0:02:46.8]} 16. Rb1 {[%clk 0:02:27.2]} 16... Bf5 {[%clk
0:02:43.3]} 17. e4 {[%clk 0:02:23.4]} 17... dxe4 {[%clk 0:02:36.7]} 18. Bxe4
{[%clk 0:02:22.6]} 18... Bc3 {[%clk 0:02:33.8]} 19. f3 {[%clk 0:02:16.4]} 19...
Rad8 {[%clk 0:02:32.6]} 20. Re2 {[%clk 0:02:03]} 20... Bxe4 {[%clk 0:02:23.3]}
21. Nxe4 {[%clk 0:01:55]} 21... Bd4+ {[%clk 0:02:21.6]} 22. Kf1 {[%clk
0:01:54.7]} 22... f5 {[%clk 0:02:20]} 23. Ng5 {[%clk 0:01:42.6]} 23... Rxe2
{[%clk 0:02:17.3]} 24. Kxe2 {[%clk 0:01:43.5]} 24... Re8+ {[%clk 0:02:18.2]} 25.
Kf1 {[%clk 0:01:43.3]} 25... Nd7 {[%clk 0:02:14.7]} 26. Bd2 {[%clk 0:01:42.4]}
26... h6 {[%clk 0:02:08.2]} 27. Nh3 {[%clk 0:01:41.8]} 27... Ne5 {[%clk
0:02:06.1]} 28. Re1 {[%clk 0:01:40.1]} 28... Kf7 {[%clk 0:02:05.4]} 29. Bxh6
{[%clk 0:01:37.7]} 29... Nxf3 {[%clk 0:02:05.1]} 30. Ng5+ {[%clk 0:01:33.9]}
30... Nxg5 {[%clk 0:02:04.5]} 31. Rxe8 {[%clk 0:01:34.5]} 31... Kxe8 {[%clk
0:02:01.9]} 32. Bxg5 {[%clk 0:01:35]} 32... Kd7 {[%clk 0:02:02.5]} 33. Ke2
{[%clk 0:01:35]} 33... Kc6 {[%clk 0:02:02.1]} 34. Be3 {[%clk 0:01:33.5]} 34...
Be5 {[%clk 0:01:58.8]} 35. Bxa7 {[%clk 0:01:26.3]} 35... b6 {[%clk 0:01:59.2]}
36. c5 {[%clk 0:01:26.7]} 36... bxc5 {[%clk 0:01:59.5]} 37. Kd3 {[%clk 0:01:27]}
37... Bd6 {[%clk 0:01:58.5]} 38. Kc4 {[%clk 0:01:27]} 38... g5 {[%clk
0:01:57.9]} 39. a4 {[%clk 0:01:18.4]} 39... f4 {[%clk 0:01:58]} 40. gxf4 {[%clk
0:01:19.1]} 40... gxf4 {[%clk 0:01:58.9]} 41. a5 {[%clk 0:01:13.4]} 41... f3
{[%clk 0:01:57.8]} 42. Kd3 {[%clk 0:01:12.6]} 42... Kb7 {[%clk 0:01:54.9]} 43.
Bb6 {[%clk 0:01:12.1]} 43... Bxh2 {[%clk 0:01:43.2]} 44. Bxc5 {[%clk 0:01:07.6]}
44... Ka6 {[%clk 0:01:43.8]} 45. b4 {[%clk 0:01:06.9]} 45... Kb5 {[%clk
0:01:42.7]} 46. Ke4 {[%clk 0:00:52.3]} 46... Bc7 {[%clk 0:01:34.8]} 1/2-1/2

[Event "*** SCC Grand Prix: Titled Tuesday Blitz"]
[Site "Chess.com"]
[Date "2020.09.08"]
[Round "10"]
[White "Barcelona_Guy"]
[Black "Snowflake"]
[Result "1-0"]
[WhiteElo "2634"]
[BlackElo "2475"]
[TimeControl "180+1"]
[EndTime "11:55:12 PDT"]
[Termination "Barcelona_Guy won by resignation"]

1. e4 {[%clk 0:03:00.9]} 1... e5 {[%clk 0:02:51.8]} 2. Nf3 {[%clk 0:03:00.6]}
2... Nc6 {[%clk 0:02:51.8]} 3. Bb5 {[%clk 0:03:00.6]} 3... a6 {[%clk 0:02:51.6]}
4. Ba4 {[%clk 0:03:00.1]} 4... Nf6 {[%clk 0:02:51.2]} 5. O-O {[%clk 0:02:58.3]}
5... Be7 {[%clk 0:02:51.2]} 6. Re1 {[%clk 0:02:58.4]} 6... b5 {[%clk 0:02:51.1]}
7. Bb3 {[%clk 0:02:59]} 7... O-O {[%clk 0:02:50.9]} 8. a4 {[%clk 0:02:58.6]}
8... Bb7 {[%clk 0:02:35.4]} 9. d3 {[%clk 0:02:56.1]} 9... d6 {[%clk 0:02:15.8]}
10. Nbd2 {[%clk 0:02:54.3]} 10... h6 {[%clk 0:02:12.5]} 11. Nf1 {[%clk
0:02:53.9]} 11... Re8 {[%clk 0:02:11.9]} 12. Ng3 {[%clk 0:02:54]} 12... Bf8
{[%clk 0:02:11.9]} 13. c3 {[%clk 0:02:46]} 13... g6 {[%clk 0:02:06.7]} 14. d4
{[%clk 0:02:41.5]} 14... Bg7 {[%clk 0:02:02.5]} 15. d5 {[%clk 0:02:29.9]} 15...
Na5 {[%clk 0:01:53.5]} 16. Bc2 {[%clk 0:02:28.8]} 16... c6 {[%clk 0:01:44.4]}
17. dxc6 {[%clk 0:02:21.6]} 17... Bxc6 {[%clk 0:01:45.3]} 18. Qe2 {[%clk
0:01:47.5]} 18... Nc4 {[%clk 0:01:41.4]} 19. b3 {[%clk 0:01:45.6]} 19... Nb6
{[%clk 0:01:40.8]} 20. axb5 {[%clk 0:01:34.1]} 20... axb5 {[%clk 0:01:39.5]} 21.
Rxa8 {[%clk 0:01:35]} 21... Qxa8 {[%clk 0:01:39.7]} 22. Be3 {[%clk 0:01:34.8]}
22... Nbd7 {[%clk 0:01:36.6]} 23. Qd2 {[%clk 0:01:21.4]} 23... d5 {[%clk
0:01:21.3]} 24. Bxh6 {[%clk 0:01:04.3]} 24... dxe4 {[%clk 0:01:19.8]} 25. Nh4
{[%clk 0:01:04.1]} 25... Nf8 {[%clk 0:00:58.5]} 26. Bxg7 {[%clk 0:00:52.9]}
26... Kxg7 {[%clk 0:00:59.4]} 27. Ngf5+ {[%clk 0:00:53.2]} 27... gxf5 {[%clk
0:00:51.9]} 28. Qg5+ {[%clk 0:00:52.1]} 28... Ng6 {[%clk 0:00:43.5]} 29. Nxf5+
{[%clk 0:00:51.7]} 29... Kf8 {[%clk 0:00:36.7]} 30. Qh6+ {[%clk 0:00:50.9]} 1-0

[Event "*** SCC Grand Prix: Titled Tuesday Blitz"]
[Site "Chess.com"]
[Date "2020.09.08"]
[Round "10"]
[White "juancruzarias"]
[Black "QuintilianoR"]
[Result "0-1"]
[WhiteElo "2459"]
[BlackElo "2610"]
[TimeControl "180+1"]
[EndTime "11:55:12 PDT"]
[Termination "QuintilianoR won by resignation"]

1. d4 {[%clk 0:03:00.9]} 1... Nf6 {[%clk 0:02:59.5]} 2. Bg5 {[%clk 0:03:01.5]}
2... d5 {[%clk 0:02:58]} 3. e3 {[%clk 0:02:59.8]} 3... Ne4 {[%clk 0:02:56.3]} 4.
Bf4 {[%clk 0:02:58.7]} 4... c5 {[%clk 0:02:56.1]} 5. c3 {[%clk 0:02:52.7]} 5...
Nc6 {[%clk 0:02:53.8]} 6. Nd2 {[%clk 0:02:52.7]} 6... Nxd2 {[%clk 0:02:52.3]} 7.
Qxd2 {[%clk 0:02:52.7]} 7... e6 {[%clk 0:02:50.4]} 8. Nf3 {[%clk 0:02:52.5]}
8... Bd6 {[%clk 0:02:49.4]} 9. Bd3 {[%clk 0:02:52]} 9... O-O {[%clk 0:02:46]}
10. Bg3 {[%clk 0:02:51.2]} 10... Re8 {[%clk 0:02:36.9]} 11. Ne5 {[%clk
0:02:41.9]} 11... f6 {[%clk 0:02:22.1]} 12. Nxc6 {[%clk 0:02:39.7]} 12... bxc6
{[%clk 0:02:23]} 13. O-O {[%clk 0:02:30.1]} 13... a5 {[%clk 0:01:55.9]} 14. Rad1
{[%clk 0:02:28.7]} 14... c4 {[%clk 0:01:51.2]} 15. Bb1 {[%clk 0:02:22.1]} 15...
Rb8 {[%clk 0:01:38.8]} 16. Rfe1 {[%clk 0:02:16.4]} 16... Bxg3 {[%clk 0:01:29.5]}
17. hxg3 {[%clk 0:02:17.3]} 17... Qb6 {[%clk 0:01:29.6]} 18. Qe2 {[%clk
0:02:17.9]} 18... Bd7 {[%clk 0:01:06.6]} 19. Rd2 {[%clk 0:02:17.5]} 19... e5
{[%clk 0:00:52.1]} 20. dxe5 {[%clk 0:02:08.8]} 20... Rxe5 {[%clk 0:00:53]} 21.
Qf3 {[%clk 0:02:03]} 21... Rbe8 {[%clk 0:00:49.2]} 22. Qf4 {[%clk 0:02:02.5]}
22... Qb8 {[%clk 0:00:39.2]} 23. Qh4 {[%clk 0:01:59]} 23... Bf5 {[%clk
0:00:36.9]} 24. Bxf5 {[%clk 0:01:53.3]} 24... Rxf5 {[%clk 0:00:37.8]} 25. f4
{[%clk 0:01:47.6]} 25... h5 {[%clk 0:00:22]} 26. g4 {[%clk 0:01:44.6]} 26...
hxg4 {[%clk 0:00:19.5]} 27. Qxg4 {[%clk 0:01:45.5]} 27... Rxf4 {[%clk
0:00:18.7]} 28. Qd7 {[%clk 0:01:39.3]} 28... Rh4 {[%clk 0:00:16.4]} 29. Qxc6
{[%clk 0:01:35.2]} 29... Qh2+ {[%clk 0:00:15.1]} 30. Kf2 {[%clk 0:01:35.4]}
30... Rf4+ {[%clk 0:00:14.1]} 31. exf4 {[%clk 0:01:24.5]} 31... Qxf4+ {[%clk
0:00:15]} 0-1

[Event "*** SCC Grand Prix: Titled Tuesday Blitz"]
[Site "Chess.com"]
[Date "2020.09.08"]
[Round "10"]
[White "sorrm8thatscheckm8"]
[Black "Sn00pPawn"]
[Result "1-0"]
[WhiteElo "2442"]
[BlackElo "2004"]
[TimeControl "180+1"]
[EndTime "11:55:30 PDT"]
[Termination "sorrm8thatscheckm8 won on time"]

1. d4 {[%clk 0:03:00.9]} 1... d5 {[%clk 0:02:56]} 2. c4 {[%clk 0:03:01.1]} 2...
e6 {[%clk 0:02:55]} 3. Nc3 {[%clk 0:03:00.6]} 3... Nf6 {[%clk 0:02:54.8]} 4.
cxd5 {[%clk 0:03:00.8]} 4... exd5 {[%clk 0:02:54.7]} 5. Bg5 {[%clk 0:03:01.4]}
5... Be7 {[%clk 0:02:51]} 6. Qc2 {[%clk 0:03:00.9]} 6... O-O {[%clk 0:02:49.5]}
7. e3 {[%clk 0:03:00.6]} 7... c6 {[%clk 0:02:47.6]} 8. Bd3 {[%clk 0:02:59.9]}
8... h6 {[%clk 0:02:42.4]} 9. Bh4 {[%clk 0:02:58.9]} 9... Re8 {[%clk 0:02:38.5]}
10. Nge2 {[%clk 0:02:58.4]} 10... Nbd7 {[%clk 0:02:22.5]} 11. h3 {[%clk
0:02:53.9]} 11... Nf8 {[%clk 0:02:10.5]} 12. O-O-O {[%clk 0:02:50.6]} 12... Ne6
{[%clk 0:01:44.5]} 13. g4 {[%clk 0:02:47.7]} 13... Nd7 {[%clk 0:01:38.3]} 14.
Bxe7 {[%clk 0:02:46.9]} 14... Qxe7 {[%clk 0:01:39.2]} 15. Ng3 {[%clk 0:02:46.3]}
15... g6 {[%clk 0:01:36.6]} 16. h4 {[%clk 0:02:46.3]} 16... Kg7 {[%clk
0:01:35.1]} 17. h5 {[%clk 0:02:46.2]} 17... Qg5 {[%clk 0:01:28.9]} 18. hxg6
{[%clk 0:02:44.7]} 18... fxg6 {[%clk 0:01:28.8]} 19. f4 {[%clk 0:02:33.2]} 19...
Qxg4 {[%clk 0:01:11.3]} 20. Nf5+ {[%clk 0:02:31.9]} 20... gxf5 {[%clk
0:01:08.7]} 21. Rdg1 {[%clk 0:02:30.8]} 21... Nf6 {[%clk 0:01:01.8]} 22. Bxf5
{[%clk 0:02:29.5]} 22... Qxg1+ {[%clk 0:00:51.6]} 23. Rxg1+ {[%clk 0:02:29.1]}
23... Kh8 {[%clk 0:00:52.1]} 24. Qh2 {[%clk 0:02:29.3]} 24... Re7 {[%clk
0:00:43.4]} 25. Qxh6+ {[%clk 0:02:28.4]} 25... Nh7 {[%clk 0:00:43.4]} 26. Bxh7
{[%clk 0:02:23.4]} 26... Rxh7 {[%clk 0:00:40.8]} 27. Qf6+ {[%clk 0:02:23.8]}
27... Rg7 {[%clk 0:00:35.7]} 28. f5 {[%clk 0:02:16]} 28... Kg8 {[%clk
0:00:28.6]} 29. Rxg7+ {[%clk 0:02:10.6]} 29... Nxg7 {[%clk 0:00:29.5]} 30. Qd8+
{[%clk 0:02:08.6]} 30... Kf7 {[%clk 0:00:29.2]} 31. f6 {[%clk 0:02:07.7]} 31...
Nf5 {[%clk 0:00:25.2]} 32. e4 {[%clk 0:02:04.3]} 32... dxe4 {[%clk 0:00:24.4]}
33. Nxe4 {[%clk 0:02:04.2]} 33... Nxd4 {[%clk 0:00:10.7]} 34. Qxd4 {[%clk
0:02:01.6]} 34... Be6 {[%clk 0:00:05.5]} 35. Ng5+ {[%clk 0:02:01.3]} 35... Kg6
{[%clk 0:00:03.1]} 36. Nxe6 {[%clk 0:02:01.7]} 36... Rh8 {[%clk 0:00:02.4]} 37.
Nf4+ {[%clk 0:01:58.1]} 37... Kf5 {[%clk 0:00:01.7]} 38. f7 {[%clk 0:01:53.1]}
38... Rh1+ {[%clk 0:00:02.6]} 39. Kc2 {[%clk 0:01:52]} 39... Rh2+ {[%clk
0:00:02.2]} 40. Kb3 {[%clk 0:01:51.2]} 40... c5 {[%clk 0:00:01.6]} 41. Qxc5+
{[%clk 0:01:49.1]} 1-0

[Event "*** SCC Grand Prix: Titled Tuesday Blitz"]
[Site "Chess.com"]
[Date "2020.09.08"]
[Round "10"]
[White "ehrenfeld"]
[Black "anon102030"]
[Result "0-1"]
[WhiteElo "2556"]
[BlackElo "2709"]
[TimeControl "180+1"]
[EndTime "11:55:33 PDT"]
[Termination "anon102030 won by resignation"]

1. e4 {[%clk 0:03:00.9]} 1... e5 {[%clk 0:02:59.6]} 2. Nc3 {[%clk 0:03:00.4]}
2... Nc6 {[%clk 0:02:59.1]} 3. Bc4 {[%clk 0:02:59.8]} 3... g6 {[%clk 0:02:58.9]}
4. d3 {[%clk 0:02:59.4]} 4... Bg7 {[%clk 0:02:58.7]} 5. f4 {[%clk 0:02:59.5]}
5... d6 {[%clk 0:02:58]} 6. Nf3 {[%clk 0:02:58.9]} 6... Nf6 {[%clk 0:02:53.4]}
7. O-O {[%clk 0:02:55.4]} 7... h6 {[%clk 0:02:50.8]} 8. fxe5 {[%clk 0:02:52.7]}
8... dxe5 {[%clk 0:02:51.7]} 9. Kh1 {[%clk 0:02:45.1]} 9... O-O {[%clk 0:02:49]}
10. Be3 {[%clk 0:02:42.8]} 10... Ng4 {[%clk 0:02:43.5]} 11. Bc5 {[%clk
0:02:40.3]} 11... Re8 {[%clk 0:02:22]} 12. Bxf7+ {[%clk 0:02:35.6]} 12... Kxf7
{[%clk 0:02:15.2]} 13. Nxe5+ {[%clk 0:02:35.1]} 13... Kg8 {[%clk 0:02:15.7]} 14.
Nxg4 {[%clk 0:02:34.2]} 14... Qg5 {[%clk 0:02:06]} 15. Nd5 {[%clk 0:01:10.7]}
15... Bxg4 {[%clk 0:02:03.3]} 16. Qe1 {[%clk 0:01:07.1]} 16... Rac8 {[%clk
0:01:56.2]} 17. Qf2 {[%clk 0:01:01]} 17... Be6 {[%clk 0:01:54]} 18. h4 {[%clk
0:00:55.9]} 18... Qd8 {[%clk 0:01:45.5]} 19. Nf4 {[%clk 0:00:53.5]} 19... Bf7
{[%clk 0:01:17.3]} 20. Rad1 {[%clk 0:00:51.5]} 20... Bd4 {[%clk 0:01:14.3]} 21.
Bxd4 {[%clk 0:00:50.7]} 21... Qxd4 {[%clk 0:01:15.2]} 22. Qg3 {[%clk 0:00:50]}
22... Qg7 {[%clk 0:01:14.2]} 23. d4 {[%clk 0:00:47.1]} 23... Rxe4 {[%clk
0:01:11.2]} 24. d5 {[%clk 0:00:40.9]} 24... Ne7 {[%clk 0:01:04.6]} 25. Qd3
{[%clk 0:00:28.3]} 25... Nf5 {[%clk 0:00:57.7]} 26. g4 {[%clk 0:00:10.4]} 26...
Re3 {[%clk 0:00:56.4]} 27. Qb5 {[%clk 0:00:06.6]} 27... Ng3+ {[%clk 0:00:56.1]}
28. Kg2 {[%clk 0:00:05.7]} 28... Nxf1 {[%clk 0:00:57]} 0-1

[Event "*** SCC Grand Prix: Titled Tuesday Blitz"]
[Site "Chess.com"]
[Date "2020.09.08"]
[Round "10"]
[White "Nils_03"]
[Black "rududuyk"]
[Result "1-0"]
[WhiteElo "2264"]
[BlackElo "2119"]
[TimeControl "180+1"]
[EndTime "11:55:36 PDT"]
[Termination "Nils_03 won by resignation"]

1. d4 {[%clk 0:03:00.9]} 1... e6 {[%clk 0:02:59.3]} 2. c4 {[%clk 0:02:58.8]}
2... f5 {[%clk 0:02:59.1]} 3. Nc3 {[%clk 0:02:58.1]} 3... Nf6 {[%clk 0:02:59.3]}
4. Bg5 {[%clk 0:02:56.8]} 4... Bb4 {[%clk 0:02:54.1]} 5. Nf3 {[%clk 0:02:55]}
5... O-O {[%clk 0:02:51.8]} 6. e3 {[%clk 0:02:55.4]} 6... b6 {[%clk 0:02:45.7]}
7. Be2 {[%clk 0:02:54.7]} 7... Bb7 {[%clk 0:02:45.3]} 8. O-O {[%clk 0:02:55.3]}
8... Bxc3 {[%clk 0:02:45.4]} 9. bxc3 {[%clk 0:02:55]} 9... Qe8 {[%clk
0:02:43.6]} 10. Rb1 {[%clk 0:02:51.7]} 10... Be4 {[%clk 0:02:21.8]} 11. Bd3
{[%clk 0:02:46.8]} 11... Bxd3 {[%clk 0:02:14.4]} 12. Qxd3 {[%clk 0:02:47.7]}
12... Nc6 {[%clk 0:02:14.4]} 13. Bxf6 {[%clk 0:02:32.2]} 13... Rxf6 {[%clk
0:02:13.5]} 14. c5 {[%clk 0:02:33.1]} 14... bxc5 {[%clk 0:02:05.8]} 15. dxc5
{[%clk 0:02:34]} 15... e5 {[%clk 0:02:02]} 16. Rfd1 {[%clk 0:02:29.5]} 16... e4
{[%clk 0:01:43.5]} 17. Qd5+ {[%clk 0:02:23.9]} 17... Kh8 {[%clk 0:01:37.7]} 18.
Nd4 {[%clk 0:02:21.4]} 18... Ne5 {[%clk 0:01:35.8]} 19. Rb7 {[%clk 0:01:56.3]}
19... c6 {[%clk 0:01:26.5]} 20. Qb3 {[%clk 0:01:52.6]} 20... Nd3 {[%clk
0:01:22.8]} 21. Qc4 {[%clk 0:01:40.9]} 21... f4 {[%clk 0:01:01.1]} 22. Rxd3
{[%clk 0:01:26.2]} 22... exd3 {[%clk 0:00:59.3]} 23. Qxd3 {[%clk 0:01:27.1]}
23... Rb8 {[%clk 0:00:48.7]} 24. Rxb8 {[%clk 0:01:12.5]} 24... Qxb8 {[%clk
0:00:47.9]} 25. exf4 {[%clk 0:01:13.4]} 25... Qxf4 {[%clk 0:00:45.7]} 26. g3
{[%clk 0:01:11.2]} 26... Qxf2+ {[%clk 0:00:44.6]} 27. Kh1 {[%clk 0:01:10.6]}
27... Qe1+ {[%clk 0:00:38.4]} 28. Kg2 {[%clk 0:01:09.8]} 28... Rf2+ {[%clk
0:00:37.4]} 29. Kh3 {[%clk 0:01:10]} 29... Qg1 {[%clk 0:00:34.1]} 30. Qe4 {[%clk
0:01:00.7]} 30... Rxh2+ {[%clk 0:00:25.1]} 31. Kg4 {[%clk 0:01:00.8]} 31... Qd1+
{[%clk 0:00:23.7]} 32. Nf3 {[%clk 0:00:57.9]} 32... h5+ {[%clk 0:00:21.3]} 33.
Kg5 {[%clk 0:00:57.1]} 33... Qd5+ {[%clk 0:00:21]} 34. Qxd5 {[%clk 0:00:56.4]}
34... cxd5 {[%clk 0:00:21.9]} 35. Nxh2 {[%clk 0:00:56.8]} 35... Kg8 {[%clk
0:00:20.2]} 36. Kxh5 {[%clk 0:00:55.3]} 1-0

[Event "*** SCC Grand Prix: Titled Tuesday Blitz"]
[Site "Chess.com"]
[Date "2020.09.08"]
[Round "10"]
[White "picturesquecheck"]
[Black "Chessbard1972"]
[Result "0-1"]
[WhiteElo "2147"]
[BlackElo "2340"]
[TimeControl "180+1"]
[EndTime "11:55:39 PDT"]
[Termination "Chessbard1972 won by resignation"]

1. e4 {[%clk 0:03:00.9]} 1... c5 {[%clk 0:02:59.7]} 2. Nf3 {[%clk 0:03:00.1]}
2... a6 {[%clk 0:02:59]} 3. c4 {[%clk 0:02:59.3]} 3... e6 {[%clk 0:02:58.5]} 4.
d4 {[%clk 0:02:58.9]} 4... cxd4 {[%clk 0:02:58.7]} 5. Nxd4 {[%clk 0:02:59.8]}
5... Nf6 {[%clk 0:02:59]} 6. Nc3 {[%clk 0:02:59.4]} 6... Qc7 {[%clk 0:02:59]} 7.
Be2 {[%clk 0:02:44.9]} 7... b6 {[%clk 0:02:57.7]} 8. O-O {[%clk 0:02:43.3]} 8...
Bb7 {[%clk 0:02:57.7]} 9. f3 {[%clk 0:02:43.8]} 9... Nc6 {[%clk 0:02:54.7]} 10.
Be3 {[%clk 0:02:43.7]} 10... Ne5 {[%clk 0:02:54.4]} 11. b3 {[%clk 0:02:40.9]}
11... Ng6 {[%clk 0:02:52.3]} 12. Rc1 {[%clk 0:02:36.4]} 12... h5 {[%clk
0:02:50.7]} 13. Kh1 {[%clk 0:02:26.7]} 13... h4 {[%clk 0:02:49.4]} 14. Nd5
{[%clk 0:02:05.6]} 14... Qd8 {[%clk 0:02:42.7]} 15. Nxe6 {[%clk 0:01:32.6]}
15... fxe6 {[%clk 0:02:20.6]} 16. Bxb6 {[%clk 0:01:32.3]} 16... Qc8 {[%clk
0:02:14.1]} 17. Nc7+ {[%clk 0:01:32]} 17... Kf7 {[%clk 0:02:13.8]} 18. Nxa8
{[%clk 0:01:26.9]} 18... Bxa8 {[%clk 0:02:13.5]} 19. f4 {[%clk 0:01:25.3]} 19...
Bxe4 {[%clk 0:02:07.3]} 20. Bf3 {[%clk 0:01:24.9]} 20... Qc6 {[%clk 0:02:05.4]}
21. Bd4 {[%clk 0:01:21.3]} 21... Ba3 {[%clk 0:02:00.5]} 22. Rc3 {[%clk
0:01:12.7]} 22... Bxf3 {[%clk 0:01:52]} 23. Rcxf3 {[%clk 0:00:54.8]} 23... h3
{[%clk 0:01:48.4]} 24. g3 {[%clk 0:00:53.9]} 24... Ne4 {[%clk 0:01:44.6]} 25.
Kg1 {[%clk 0:00:51.2]} 25... Bc5 {[%clk 0:01:41.4]} 26. f5 {[%clk 0:00:50]}
26... Ne5 {[%clk 0:01:20.2]} 27. Rf4 {[%clk 0:00:30.5]} 27... Nxg3 {[%clk
0:01:04.6]} 28. fxe6+ {[%clk 0:00:25.1]} 28... Kxe6 {[%clk 0:01:03.1]} 29. R1f3
{[%clk 0:00:09.6]} 29... Bxd4+ {[%clk 0:00:57]} 30. Qxd4 {[%clk 0:00:07.6]}
30... Ne2+ {[%clk 0:00:55.4]} 0-1

[Event "*** SCC Grand Prix: Titled Tuesday Blitz"]
[Site "Chess.com"]
[Date "2020.09.08"]
[Round "10"]
[White "DvaHrasta"]
[Black "Duong57"]
[Result "1-0"]
[WhiteElo "2464"]
[BlackElo "2303"]
[TimeControl "180+1"]
[EndTime "11:55:41 PDT"]
[Termination "DvaHrasta won on time"]

1. c4 {[%clk 0:03:00.9]} 1... e5 {[%clk 0:02:59.5]} 2. g3 {[%clk 0:03:00.6]}
2... Nf6 {[%clk 0:02:58.9]} 3. Bg2 {[%clk 0:03:00.6]} 3... d5 {[%clk 0:02:59.2]}
4. cxd5 {[%clk 0:03:00]} 4... Nxd5 {[%clk 0:03:00]} 5. Nf3 {[%clk 0:03:00.2]}
5... Nc6 {[%clk 0:02:59.7]} 6. O-O {[%clk 0:02:58.9]} 6... Be7 {[%clk
0:02:59.4]} 7. d4 {[%clk 0:02:57.7]} 7... e4 {[%clk 0:02:40.6]} 8. Ne5 {[%clk
0:02:57.5]} 8... f5 {[%clk 0:02:05]} 9. Nxc6 {[%clk 0:02:56.7]} 9... bxc6 {[%clk
0:02:05.9]} 10. Qc2 {[%clk 0:02:57]} 10... Bd7 {[%clk 0:01:54.1]} 11. Nc3 {[%clk
0:02:53.8]} 11... O-O {[%clk 0:01:52.8]} 12. a3 {[%clk 0:02:50.2]} 12... Bf6
{[%clk 0:01:47.1]} 13. e3 {[%clk 0:02:49.2]} 13... Qe7 {[%clk 0:01:44.4]} 14.
Na4 {[%clk 0:02:45]} 14... Rae8 {[%clk 0:01:25.3]} 15. Nc5 {[%clk 0:02:44]}
15... Bc8 {[%clk 0:01:25.3]} 16. Bd2 {[%clk 0:02:42.4]} 16... Qf7 {[%clk
0:01:24]} 17. Qa4 {[%clk 0:02:38.3]} 17... Qg6 {[%clk 0:00:58.5]} 18. Qxc6
{[%clk 0:02:33.1]} 18... Qf7 {[%clk 0:00:46.5]} 19. Rac1 {[%clk 0:02:22.3]}
19... Be7 {[%clk 0:00:32.4]} 20. Ba5 {[%clk 0:02:09.9]} 20... Bd6 {[%clk
0:00:31.7]} 21. Na6 {[%clk 0:01:43.2]} 21... Bd7 {[%clk 0:00:24.7]} 22. Qc4
{[%clk 0:01:36.9]} 22... Be6 {[%clk 0:00:24.4]} 23. Qc2 {[%clk 0:01:30]} 23...
Re7 {[%clk 0:00:20.1]} 24. Nb4 {[%clk 0:01:20.4]} 24... Nb6 {[%clk 0:00:13.1]}
25. Nc6 {[%clk 0:01:13.6]} 25... Rd7 {[%clk 0:00:12.7]} 26. Rfd1 {[%clk
0:01:04.7]} 26... Nc4 {[%clk 0:00:08]} 27. Bf1 {[%clk 0:00:58.8]} 27... Nxa5
{[%clk 0:00:06.9]} 28. Nxa5 {[%clk 0:00:58.7]} 28... Rb8 {[%clk 0:00:05.5]} 29.
d5 {[%clk 0:00:57.5]} 29... Bxd5 {[%clk 0:00:04.1]} 30. Rxd5 {[%clk 0:00:57.6]}
1-0